[Event "1st Gujarat GM Open 2018"]
[Site "Ahmedabad"]
[Date "2018.10.07"]
[Round "4"]
[White "Fenil, Shah"]
[Black "Nandhidhaa, P V"]
[Result "0-1"]
[ECO "B47"]
[WhiteElo "2411"]
[BlackElo "2212"]
[Annotator "ChessBase"]
[PlyCount "122"]
[EventDate "2018.10.05"]
[EventType "swiss"]
[EventCountry "IND"]
[SourceTitle "playchess.com"]
[Source "ChessBase"]
[SourceQuality "1"]
[TimeControl "5400+30"]

1. e4 {[%emt 0:00:00]} c5 {[%emt 0:01:41]} 2. Nf3 {[%emt 0:00:16]} e6 {[%emt 0:00:08]} 3. d4 cxd4 {[%emt 0:00:06]} 4. Nxd4 {[%emt 0:01:53]} Nc6 {[%emt 0:00:05]} 5. Nc3 {[%emt 0:00:14]} Qc7 {[%emt 0:00:07]} 6. Qd3 {[%emt 0:05:33]} Nf6 {[%emt 0:06:47]} 7. Ndb5 {[%emt 0:00:22]} Qb8 {[%emt 0:01:39]} 8. Qg3 {[%emt 0:00:11]} d6 {[%emt 0:01:30]} 9. Be3 {[%emt 0:01:28]} a6 {[%emt 0:06:25]} 10. Nd4 {[%emt 0:06:41]} Bd7 {[%emt 0:02:02]} 11. Bd3 {[%emt 0:15:06]} b5 {[%emt 0:03:43]} 12. f4 {[%emt 0:13:32]} b4 {[%emt 0:15:43]} 13. Nb1 {[%emt 0:09:41]} g6 {[%emt 0:16:25]} 14. Qf3 {[%emt 0:10:16]} Bg7 {[%emt 0:04:16]} 15. Nd2 {[%emt 0:03:38]} Qc7 {[%emt 0:01:38]} 16. N2b3 {[%emt 0:04:39]} O-O {[%emt 0:01:45]} 17. O-O {[%emt 0:01:17]} Nxd4 {[%emt 0:05:13]} 18. Bxd4 {[%emt 0:02:32]} a5 {[%emt 0:05:35]} 19. e5 {[%emt 0:01:50]} Bc6 {[%emt 0:06:12]} 20. Qe2 {[%emt 0:06:09]} dxe5 {[%emt 0:06:44]} 21. fxe5 {[%emt 0:00:41]} Nd7 {[%emt 0:00:09]} 22. Rae1 {[%emt 0:00:17]} Bd5 {[%emt 0:02:05]} 23. Nd2 {[%emt 0:05:33]} Rac8 {[%emt 0:04:03]} 24. b3 {[%emt 0:02:28]} Nc5 25. Bc4 {[%emt 0:00:02]} a4 {[%emt 0:03:32]} 26. Qe3 {[%emt 0:02:34]} axb3 {[%emt 0:00:42]} 27. axb3 {[%emt 0:00:02]} Bb7 {[%emt 0:03:04]} 28. Rf2 {[%emt 0:02:09]} Nd7 {[%emt 0:01:25]} 29. Nf3 {[%emt 0:00:58]} Bxf3 {[%emt 0:00:16]} 30. Rxf3 {[%emt 0:00:06]} Nb8 {[%emt 0:01:08]} 31. Bb6 {[%emt 0:01:27]} Qb7 {[%emt 0:00:35]} 32. Bc5 {[%emt 0:00:21]} Rfd8 {[%emt 0:00:36]} 33. Ref1 {[%emt 0:00:24]} Rd7 {[%emt 0:00:16]} 34. Rxf7 {[%emt 0:03:51]} Rxf7 {[%emt 0:00:05]} 35. Bxe6 {[%emt 0:00:01]} Rcc7 {[%emt 0:00:20]} 36. Bd6 {[%emt 0:00:52]} Rcd7 {[%emt 0:01:03]} 37. Qf4 {[%emt 0:00:54]} Nc6 {[%emt 0:00:42]} 38. Bd5 {[%emt 0:00:26]} Qa7+ {[%emt 0:00:22]} 39. Qf2 {[%emt 0:00:35]} Qxf2+ {[%emt 0:00:20]} 40. Rxf2 {[%emt 0:00:01]} Nxe5 {[%emt 0:00:16]} 41. Bxf7+ {[%emt 0:00:24]} Nxf7 {[%emt 0:00:11]} 42. Bc5 {[%emt 0:00:33]} Bd4 {[%emt 0:01:11]} 43. Bxd4 {[%emt 0:00:02]} Rxd4 {[%emt 0:00:03]} 44. Re2 {[%emt 0:00:07]} Kg7 {[%emt 0:00:09]} 45. Kf2 {[%emt 0:00:10]} Kf6 {[%emt 0:00:10]} 46. Ke3 {[%emt 0:00:13]} Rd7 {[%emt 0:00:29]} 47. Rf2+ {[%emt 0:00:01]} Ke6 {[%emt 0:00:29]} 48. Rf4 {[%emt 0:00:01]} Rb7 {[%emt 0:00:15]} 49. Rc4 {[%emt 0:01:39]} Nd6 {[%emt 0:00:45]} 50. Rc5 {[%emt 0:00:53]} Rf7 {[%emt 0:00:59]} 51. c3 {[%emt 0:00:49]} bxc3 {[%emt 0:00:13]} 52. Rxc3 {[%emt 0:00:01]} Rf1 {[%emt 0:00:24]} 53. Rc7 {[%emt 0:00:15]} h5 {[%emt 0:00:08]} 54. Rc3 {[%emt 0:01:16]} Rb1 {[%emt 0:00:49]} 55. Kf4 {[%emt 0:00:51]} Rf1+ {[%emt 0:00:46]} 56. Ke3 {[%emt 0:00:08]} Rg1 {[%emt 0:00:24]} 57. Kf3 {[%emt 0:00:22]} Rd1 {[%emt 0:00:39]} 58. g4 {[%emt 0:00:58]} h4 {[%emt 0:00:08]} 59. g5 {[%emt 0:00:33]} Rd4 {[%emt 0:00:40]} 60. Rc7 {[%emt 0:00:49]} Rb4 {[%emt 0:00:36]} 61. Rc3 {[%emt 0:00:23]} Ne4 {[%emt 0:00:31]} 0-1

[Event "1st Gujarat GM Open 2018"]
[Site "Ahmedabad"]
[Date "2018.10.07"]
[Round "4"]
[White "Rahul Srivatshav P"]
[Black "Swati Ghate"]
[Result "1-0"]
[ECO "E45"]
[WhiteElo "2395"]
[BlackElo "2215"]
[Annotator "NA"]
[PlyCount "69"]
[EventDate "2018.10.05"]
[EventType "swiss"]
[EventCountry "IND"]
[SourceTitle "playchess.com"]
[Source "ChessBase"]
[SourceQuality "1"]
[TimeControl "5400+30"]

1. d4 {[%emt 0:00:00]} Nf6 {[%emt 0:02:20]} 2. c4 {[%emt 0:00:14]} e6 {[%emt 0:00:06]} 3. Nc3 {[%emt 0:00:42]} Bb4 {[%emt 0:00:12]} 4. e3 {[%emt 0:00:05]} b6 {[%emt 0:00:17]} 5. Nge2 {[%emt 0:00:30]} Ba6 {[%emt 0:01:42]} 6. a3 {[%emt 0:00:17]} Be7 {[%emt 0:00:42]} 7. Ng3 {[%emt 0:01:27]} d5 {[%emt 0:03:11]} 8. Be2 {[%emt 0:02:45]} dxc4 {[%emt 0:05:24]} 9. Bf3 {[%emt 0:19:31]} c6 {[%emt 0:01:46]} 10. e4 {[%emt 0:00:24]} Nbd7 {[%emt 0:03:57]} 11. e5 {[%emt 0:01:02]} Nd5 {[%emt 0:00:27]} 12. Be4 {[%emt 0:02:24]} b5 {[%emt 0:02:49]} 13. Nh5 {[%emt 0:08:15]} Bf8 {[%emt 0:18:32]} 14. Qg4 {[%emt 0:04:32]} g6 {[%emt 0:01:23]} 15. Nf4 {[%emt 0:00:08]} N7b6 {[%emt 0:04:55]} 16. h4 {[%emt 0:04:58]} Qd7 {[%emt 0:06:41]} 17. h5 {[%emt 0:02:34]} Rg8 {[%emt 0:00:31]} 18. hxg6 {[%emt 0:01:43]} hxg6 {[%emt 0:00:01]} 19. Bc2 {[%emt 0:19:43]} O-O-O {[%emt 0:07:58]} 20. Ne4 {[%emt 0:01:22]} Be7 {[%emt 0:15:18]} 21. Rh7 {[%emt 0:01:04]} Nxf4 {[%emt 0:11:49]} 22. Bxf4 {[%emt 0:05:53]} Rdf8 {[%emt 0:06:23]} 23. Bg5 {[%emt 0:03:46]} Rh8 {[%emt 0:01:19]} 24. Rxh8 {[%emt 0:06:29]} Rxh8 {[%emt 0:00:02]} 25. Ke2 {[%emt 0:00:09]} Bxg5 {[%emt 0:01:53]} 26. Qxg5 {[%emt 0:01:27]} Qxd4 {[%emt 0:01:57]} 27. Qf6 {[%emt 0:00:08]} Rf8 {[%emt 0:00:47]} 28. Qe7 {[%emt 0:00:50]} Nd7 {[%emt 0:00:58]} 29. Rd1 {[%emt 0:00:22]} Qxb2 {[%emt 0:00:28]} 30. Qxd7+ {[%emt 0:01:01]} Kb8 {[%emt 0:00:01]} 31. Qd6+ {[%emt 0:01:03]} Kb7 {[%emt 0:00:01]} 32. Nc5+ {[%emt 0:00:06]} Kb6 {[%emt 0:00:10]} 33. Qxf8 {[%emt 0:00:19]} Qxc2+ {[%emt 0:00:27]} 34. Rd2 {[%emt 0:00:04]} Qc3 {[%emt 0:00:08]} 35. Qb8+ {[%emt 0:00:05]} 1-0

[Event "1st Gujarat GM Open 2018"]
[Site "Ahmedabad"]
[Date "2018.10.07"]
[Round "4"]
[White "Rakesh Kumar Jena"]
[Black "Harshini A"]
[Result "1-0"]
[ECO "A48"]
[WhiteElo "2388"]
[BlackElo "2126"]
[Annotator "NA"]
[PlyCount "78"]
[EventDate "2018.10.05"]
[EventType "swiss"]
[EventCountry "IND"]
[SourceTitle "playchess.com"]
[Source "ChessBase"]
[SourceQuality "1"]
[TimeControl "5400+30"]

1. Nf3 {[%emt 0:00:00]} Nf6 {[%emt 0:00:00]} 2. d4 {[%emt 0:00:00]} g6 {[%emt 0:00:00]} 3. Bg5 {[%emt 0:00:00]} Ne4 {[%emt 0:00:42]} 4. Bf4 {[%emt 0:00:04]} Bg7 {[%emt 0:00:40]} 5. Nbd2 {[%emt 0:00:07]} d5 {[%emt 0:05:49]} 6. e3 {[%emt 0:00:16]} Nxd2 {[%emt 0:00:30]} 7. Qxd2 {[%emt 0:00:30]} c6 {[%emt 0:00:22]} 8. Bd3 {[%emt 0:00:08]} Nd7 {[%emt 0:00:44]} 9. c3 {[%emt 0:00:23]} Nf6 {[%emt 0:00:30]} 10. Qe2 {[%emt 0:01:47]} Bg4 {[%emt 0:04:03]} 11. h3 {[%emt 0:00:25]} Bxf3 {[%emt 0:00:45]} 12. Qxf3 {[%emt 0:00:02]} Qb6 {[%emt 0:03:03]} 13. Rb1 {[%emt 0:00:43]} Rc8 {[%emt 0:13:48]} 14. Be5 {[%emt 0:08:12]} Qa5 {[%emt 0:11:40]} 15. a3 {[%emt 0:02:47]} Nh5 {[%emt 0:02:30]} 16. Bh2 {[%emt 0:05:53]} Nf6 {[%emt 0:03:12]} 17. O-O {[%emt 0:03:02]} O-O {[%emt 0:00:52]} 18. Be5 {[%emt 0:11:11]} Nd7 {[%emt 0:01:02]} 19. Bxg7 {[%emt 0:01:21]} Kxg7 {[%emt 0:00:07]} 20. Qg3 {[%emt 0:00:03]} Qc7 {[%emt 0:09:15]} 21. f4 {[%emt 0:00:37]} c5 {[%emt 0:01:46]} 22. Qf3 {[%emt 0:01:41]} Nf6 {[%emt 0:00:45]} 23. g4 {[%emt 0:01:17]} e6 $11 {[%emt 0:01:55]} 24. Kh1 {[%emt 0:09:34]} h5 {[%emt 0:04:36]} 25. Kg2 {[%emt 0:11:34]} Rh8 {[%emt 0:01:02]} 26. Rh1 {[%emt 0:01:30]} cxd4 {[%emt 0:10:38]} 27. exd4 {[%emt 0:01:05]} Qb6 {[%emt 0:03:48]} 28. g5 {[%emt 0:05:21]} Ne8 {[%emt 0:01:35]} 29. Qe3 {[%emt 0:00:31]} Nd6 {[%emt 0:01:42]} 30. Rhe1 {[%emt 0:01:24]} Rhe8 {[%emt 0:01:25]} 31. Re2 {[%emt 0:03:44]} Qc7 {[%emt 0:08:28]} 32. Rf1 {[%emt 0:03:00]} Qd7 {[%emt 0:01:16]} 33. Qe5+ {[%emt 0:00:59]} Kg8 {[%emt 0:00:16]} 34. Rfe1 {[%emt 0:00:13]} Qd8 {[%emt 0:01:54]} 35. Kh2 {[%emt 0:05:45]} Qc7 {[%emt 0:02:46]} 36. Qf6 {[%emt 0:04:39]} Nf5 {[%emt 0:01:13]} 37. Re5 {[%emt 0:00:30]} Qd7 {[%emt 0:02:37]} 38. Bxf5 {[%emt 0:00:17]} exf5 {[%emt 0:00:13]} 39. Re7 {[%emt 0:00:06]} Qd8 1-0

[Event "1st Gujarat GM Open 2018"]
[Site "Ahmedabad"]
[Date "2018.10.07"]
[Round "4"]
[White "Sai Agni Jeevitesh, J."]
[Black "Mahindrakar Indrajeet"]
[Result "1/2-1/2"]
[ECO "A50"]
[WhiteElo "2362"]
[BlackElo "2107"]
[Annotator "NA"]
[PlyCount "159"]
[EventDate "2018.10.05"]
[EventType "swiss"]
[EventCountry "IND"]
[SourceTitle "playchess.com"]
[Source "ChessBase"]
[SourceQuality "1"]
[TimeControl "5400+30"]

1. d4 {[%emt 0:00:00]} Nf6 {[%emt 0:00:00]} 2. c4 {[%emt 0:00:00]} Nc6 {[%emt 0:00:29]} 3. Nc3 {[%emt 0:03:52]} e5 {[%emt 0:00:26]} 4. d5 {[%emt 0:00:01]} Ne7 {[%emt 0:00:57]} 5. h4 {[%emt 0:00:30]} h5 {[%emt 0:00:30]} 6. Nf3 {[%emt 0:00:30]} Ng6 {[%emt 0:00:30]} 7. Bg5 {[%emt 0:02:59]} Be7 {[%emt 0:02:35]} 8. e3 {[%emt 0:00:06]} O-O {[%emt 0:01:24]} 9. Bd3 {[%emt 0:02:45]} d6 {[%emt 0:00:49]} 10. Qc2 {[%emt 0:00:26]} Qe8 {[%emt 0:31:44]} 11. Nb5 {[%emt 0:10:35]} Bd8 {[%emt 0:04:23]} 12. Bxf6 {[%emt 0:05:04]} gxf6 {[%emt 0:00:40]} 13. Bf5 {[%emt 0:00:13]} Bd7 {[%emt 0:03:44]} 14. Rg1 {[%emt 0:07:02]} Kg7 {[%emt 0:11:05]} 15. g4 {[%emt 0:09:21]} Rh8 {[%emt 0:00:50]} 16. O-O-O {[%emt 0:02:35]} hxg4 {[%emt 0:05:55]} 17. Rxg4 {[%emt 0:01:43]} Rh5 {[%emt 0:03:59]} 18. e4 {[%emt 0:00:01]} Bxf5 {[%emt 0:07:03]} 19. exf5 {[%emt 0:00:03]} Qd7 {[%emt 0:00:07]} 20. Rdg1 {[%emt 0:05:49]} Qxf5 {[%emt 0:00:40]} 21. Qe2 {[%emt 0:00:01]} Rh7 {[%emt 0:03:43]} 22. Nc3 {[%emt 0:08:04]} Qh5 {[%emt 0:01:08]} 23. Nd1 {[%emt 0:04:21]} f5 {[%emt 0:03:58]} 24. Rg5 {[%emt 0:05:00]} Bxg5+ {[%emt 0:00:36]} 25. Rxg5 {[%emt 0:00:02]} Qh6 {[%emt 0:00:32]} 26. Ne3 {[%emt 0:00:31]} Kh8 {[%emt 0:00:45]} 27. Nxf5 {[%emt 0:00:51]} Nf4 {[%emt 0:01:16]} 28. Qe4 {[%emt 0:00:23]} Qf6 {[%emt 0:00:30]} 29. Kd2 {[%emt 0:02:33]} Rg8 {[%emt 0:03:47]} 30. Rxg8+ {[%emt 0:03:39]} Kxg8 {[%emt 0:00:01]} 31. Ng5 {[%emt 0:01:38]} Rxh4 {[%emt 0:02:56]} 32. Nxh4 {[%emt 0:05:53]} Qxg5 {[%emt 0:00:03]} 33. Nf3 {[%emt 0:01:01]} Qg2 {[%emt 0:00:12]} 34. Qe3 {[%emt 0:00:16]} Qf1 {[%emt 0:00:27]} 35. Kc3 {[%emt 0:00:10]} Qb1 {[%emt 0:01:50]} 36. a4 {[%emt 0:00:53]} Qd1 {[%emt 0:00:47]} 37. a5 {[%emt 0:02:14]} a6 {[%emt 0:03:52]} 38. Nd2 {[%emt 0:01:37]} Qc1+ {[%emt 0:00:35]} 39. Kb3 {[%emt 0:00:13]} Kf8 {[%emt 0:00:46]} 40. Nf3 {[%emt 0:02:42]} Qa1 {[%emt 0:00:40]} 41. Qd2 {[%emt 0:01:01]} Qb1 {[%emt 0:02:02]} 42. Ne1 {[%emt 0:00:59]} Ke7 {[%emt 0:00:45]} 43. Ng2 {[%emt 0:02:56]} Nxg2 {[%emt 0:00:54]} 44. Qg5+ {[%emt 0:00:01]} Kf8 {[%emt 0:00:12]} 45. Qxg2 {[%emt 0:00:25]} Qd1+ {[%emt 0:00:40]} 46. Kb4 {[%emt 0:00:26]} Qd2+ {[%emt 0:00:08]} 47. Kb3 {[%emt 0:00:01]} Qxa5 {[%emt 0:00:50]} 48. Qg5 {[%emt 0:00:01]} c5 {[%emt 0:00:59]} 49. dxc6 {[%emt 0:00:37]} Qb6+ {[%emt 0:00:40]} 50. Ka2 {[%emt 0:00:11]} bxc6 {[%emt 0:00:12]} 51. Qh6+ {[%emt 0:00:14]} Ke7 {[%emt 0:00:34]} 52. Qg5+ {[%emt 0:00:02]} Ke8 {[%emt 0:00:42]} 53. Qg8+ {[%emt 0:00:02]} Ke7 {[%emt 0:00:04]} 54. Qg5+ {[%emt 0:00:03]} Kd7 {[%emt 0:00:54]} 55. Qf6 {[%emt 0:01:00]} Qa5+ {[%emt 0:00:08]} 56. Kb3 {[%emt 0:00:06]} Qb6+ {[%emt 0:00:02]} 57. Ka2 {[%emt 0:00:06]} Qc7 {[%emt 0:01:26]} 58. Qxf7+ {[%emt 0:00:37]} Kc8 {[%emt 0:00:01]} 59. Qe8+ {[%emt 0:00:57]} Kb7 {[%emt 0:00:04]} 60. b4 {[%emt 0:02:01]} Ka7 {[%emt 0:01:20]} 61. Kb3 {[%emt 0:00:31]} Kb7 {[%emt 0:00:42]} 62. Qe6 {[%emt 0:00:19]} Qd8 {[%emt 0:00:28]} 63. Qf7+ {[%emt 0:00:41]} Kb6 {[%emt 0:00:29]} 64. Qe6 {[%emt 0:00:38]} Qf8 {[%emt 0:00:28]} 65. Qd7 {[%emt 0:01:10]} Qf3+ {[%emt 0:00:16]} 66. Ka4 {[%emt 0:00:07]} Qd1+ {[%emt 0:00:14]} 67. Ka3 {[%emt 0:00:01]} Qd3+ {[%emt 0:00:41]} 68. Ka4 {[%emt 0:00:25]} Qc2+ {[%emt 0:00:29]} 69. Ka3 {[%emt 0:00:02]} Qc1+ {[%emt 0:00:38]} 70. Kb3 {[%emt 0:00:19]} Qb1+ {[%emt 0:00:18]} 71. Kc3 {[%emt 0:00:41]} Qe1+ {[%emt 0:00:34]} 72. Kb3 {[%emt 0:00:05]} Qd1+ {[%emt 0:00:41]} 73. Ka3 {[%emt 0:00:01]} Qd3+ {[%emt 0:00:07]} 74. Ka4 {[%emt 0:00:10]} Qc2+ {[%emt 0:00:58]} 75. Ka3 {[%emt 0:00:01]} Qc3+ {[%emt 0:00:22]} 76. Ka4 {[%emt 0:00:06]} Qa1+ {[%emt 0:00:39]} 77. Kb3 {[%emt 0:00:12]} Qb1+ {[%emt 0:00:23]} 78. Ka3 {[%emt 0:00:10]} Qd3+ {[%emt 0:00:34]} 79. Ka4 {[%emt 0:00:07]} Qd1+ {[%emt 0:00:34]} 80. Ka3 {[%emt 0:00:02]} 1/2-1/2

[Event "1st Gujarat GM Open 2018"]
[Site "Ahmedabad"]
[Date "2018.10.07"]
[Round "4"]
[White "Sai Agni Jeevitesh, J."]
[Black "Mahindrakar Indrajeet"]
[Result "*"]
[ECO "B12"]
[WhiteElo "2362"]
[BlackElo "2107"]
[Annotator "NA"]
[PlyCount "67"]
[EventDate "2018.10.05"]
[EventType "swiss"]
[EventCountry "IND"]
[SourceTitle "playchess.com"]
[Source "ChessBase"]
[SourceQuality "1"]
[TimeControl "5400+30"]

1. e4 {[%emt 0:00:00]} c6 {[%emt 0:00:00]} 2. d4 {[%emt 0:00:00]} d5 {[%emt 0:00:00]} 3. e5 {[%emt 0:00:00]} c5 {[%emt 0:00:08]} 4. dxc5 {[%emt 0:00:00]} e6 {[%emt 0:00:06]} 5. a3 {[%emt 0:00:21]} Bxc5 {[%emt 0:00:07]} 6. Qg4 {[%emt 0:00:42]} g6 {[%emt 0:02:44]} 7. Bd3 {[%emt 0:01:33]} Nc6 {[%emt 0:03:05]} 8. Nf3 {[%emt 0:00:31]} Qc7 {[%emt 0:02:29]} 9. Qg3 {[%emt 0:01:51]} Bf8 {[%emt 0:02:05]} 10. O-O {[%emt 0:00:44]} Bg7 {[%emt 0:00:22]} 11. Re1 {[%emt 0:00:39]} Nge7 {[%emt 0:00:15]} 12. Nc3 {[%emt 0:00:45]} a6 {[%emt 0:00:33]} 13. Bg5 {[%emt 0:01:18]} Ng8 {[%emt 0:12:20]} 14. Rad1 {[%emt 0:04:37]} h6 {[%emt 0:00:35]} 15. Bf6 {[%emt 0:02:04]} Kf8 {[%emt 0:02:25]} 16. Bxg7+ {[%emt 0:01:06]} Kxg7 {[%emt 0:00:03]} 17. Ne2 {[%emt 0:00:18]} Nce7 {[%emt 0:05:10]} 18. Nf4 {[%emt 0:04:28]} Rh7 {[%emt 0:08:13]} 19. h4 {[%emt 0:00:58]} Kh8 {[%emt 0:02:16]} 20. h5 {[%emt 0:01:44]} g5 {[%emt 0:10:53]} 21. Bxh7 {[%emt 0:00:26]} gxf4 {[%emt 0:00:03]} 22. Qxf4 {[%emt 0:00:11]} Kxh7 {[%emt 0:00:12]} 23. Qxf7+ {[%emt 0:00:04]} Kh8 {[%emt 0:00:14]} 24. Nh4 {[%emt 0:03:45]} Qd8 {[%emt 0:04:23]} 25. Rd4 {[%emt 0:00:51]} Bd7 {[%emt 0:00:23]} 26. Rg4 {[%emt 0:00:14]} Qf8 {[%emt 0:00:34]} 27. Rxg8+ {[%emt 0:00:14]} Qxg8 {[%emt 0:00:17]} 28. Qxe7 {[%emt 0:00:06]} Qg7 {[%emt 0:00:38]} 29. Ng6+ {[%emt 0:00:44]} Kh7 {[%emt 0:00:09]} 30. Qb4 {[%emt 0:00:32]} Bc6 {[%emt 0:02:58]} 31. Re3 {[%emt 0:00:16]} Rg8 {[%emt 0:00:59]} 32. Rg3 {[%emt 0:01:07]} Qf7 {[%emt 0:00:37]} 33. Rf3 {[%emt 0:01:00]} Qg7 {[%emt 0:01:04]} 34. Rf6 {[%emt 0:00:06]} *

[Event "1st Gujarat GM Open 2018"]
[Site "Ahmedabad"]
[Date "2018.10.07"]
[Round "4"]
[White "Siva Mahadevan"]
[Black "Lalith Babu M R"]
[Result "0-1"]
[ECO "B12"]
[WhiteElo "2341"]
[BlackElo "2518"]
[Annotator "ChessBase"]
[PlyCount "80"]
[EventDate "2018.10.05"]
[EventType "swiss"]
[EventCountry "IND"]
[SourceTitle "playchess.com"]
[Source "ChessBase"]
[SourceQuality "1"]
[TimeControl "5400+30"]

1. e4 {[%emt 0:01:04]} c6 {[%emt 0:00:00]} 2. d4 {[%emt 0:00:07]} d5 {[%emt 0:00:00]} 3. e5 {[%emt 0:00:04]} Bf5 {[%emt 0:00:00]} 4. h4 {[%emt 0:00:06]} h5 {[%emt 0:00:00]} 5. c4 {[%emt 0:00:04]} e6 {[%emt 0:00:00]} 6. Nc3 {[%emt 0:00:05]} Ne7 {[%emt 0:00:06]} 7. Nge2 {[%emt 0:00:21]} Nd7 {[%emt 0:00:13]} 8. Bg5 {[%emt 0:00:24]} Qb6 {[%emt 0:00:52]} 9. Qd2 {[%emt 0:00:14]} dxc4 {[%emt 0:00:26]} 10. Ng3 {[%emt 0:00:59]} Bg6 {[%emt 0:01:08]} 11. Bxc4 {[%emt 0:00:57]} Rd8 {[%emt 0:01:30]} 12. Be3 {[%emt 0:27:00]} Qb4 {[%emt 0:06:28]} 13. Qe2 {[%emt 0:01:24]} Nb6 {[%emt 0:01:00]} 14. Bd3 {[%emt 0:05:00]} Bxd3 {[%emt 0:09:47]} 15. Qxd3 {[%emt 0:00:22]} Ng6 {[%emt 0:00:06]} 16. Qe2 {[%emt 0:04:24]} Be7 {[%emt 0:01:54]} 17. Nxh5 {[%emt 0:16:38]} Rxh5 {[%emt 0:04:05]} 18. Qxh5 {[%emt 0:00:06]} Qxb2 {[%emt 0:00:03]} 19. Rc1 {[%emt 0:00:07]} Bb4 {[%emt 0:00:11]} 20. O-O {[%emt 0:00:18]} Bxc3 {[%emt 0:00:09]} 21. Qh7 {[%emt 0:06:45]} Bxd4 {[%emt 0:01:54]} 22. Rcd1 {[%emt 0:04:45]} Rd5 {[%emt 0:06:44]} 23. h5 {[%emt 0:06:13]} Nf8 {[%emt 0:03:27]} 24. Bxd4 {[%emt 0:07:23]} Qxd4 {[%emt 0:00:23]} 25. Qxg7 {[%emt 0:01:07]} Qxe5 {[%emt 0:00:52]} 26. h6 {[%emt 0:02:34]} Qf5 {[%emt 0:03:23]} 27. Rfe1 {[%emt 0:04:38]} Qg6 {[%emt 0:05:32]} 28. Rxd5 {[%emt 0:02:16]} Nxd5 {[%emt 0:00:55]} 29. Re5 {[%emt 0:04:23]} Nf6 {[%emt 0:01:10]} 30. Rg5 {[%emt 0:00:10]} Qb1+ {[%emt 0:00:06]} 31. Kh2 {[%emt 0:00:04]} Ke7 {[%emt 0:03:08]} 32. Rg3 {[%emt 0:00:57]} Qxa2 {[%emt 0:02:44]} 33. Rf3 {[%emt 0:00:12]} Qb2 {[%emt 0:00:40]} 34. g4 {[%emt 0:03:58]} Qe5+ {[%emt 0:01:00]} 35. Kg1 {[%emt 0:01:39]} N8h7 {[%emt 0:00:58]} 36. Rxf6 {[%emt 0:00:23]} Nxf6 {[%emt 0:00:06]} 37. h7 {[%emt 0:00:07]} Qe1+ {[%emt 0:00:05]} 38. Kh2 {[%emt 0:00:17]} Qxf2+ {[%emt 0:00:10]} 39. Kh3 {[%emt 0:00:06]} Qf3+ {[%emt 0:00:13]} 40. Kh2 {[%emt 0:00:12]} Qe2+ {[%emt 0:00:07]} 0-1

[Event "1st Gujarat GM Open 2018"]
[Site "Ahmedabad"]
[Date "2018.10.07"]
[Round "4"]
[White "Saurabh Anand"]
[Black "Srihari L R"]
[Result "0-1"]
[ECO "B07"]
[WhiteElo "2303"]
[BlackElo "2170"]
[Annotator "NA"]
[PlyCount "64"]
[EventDate "2018.10.05"]
[EventType "swiss"]
[EventCountry "IND"]
[SourceTitle "playchess.com"]
[Source "ChessBase"]
[SourceQuality "1"]
[TimeControl "5400+30"]

1. e4 {[%emt 0:00:00]} d6 {[%emt 0:00:37]} 2. d4 {[%emt 0:00:00]} Nf6 {[%emt 0:00:08]} 3. Nc3 {[%emt 0:00:05]} c6 {[%emt 0:00:04]} 4. f4 {[%emt 0:00:24]} Qa5 {[%emt 0:00:19]} 5. Bd3 {[%emt 0:00:29]} e5 {[%emt 0:00:32]} 6. Nf3 {[%emt 0:00:22]} Bg4 {[%emt 0:01:21]} 7. Be3 {[%emt 0:00:46]} Nbd7 {[%emt 0:01:21]} 8. O-O {[%emt 0:00:33]} Be7 {[%emt 0:00:25]} 9. h3 {[%emt 0:00:38]} Bxf3 {[%emt 0:02:31]} 10. Qxf3 {[%emt 0:00:17]} O-O {[%emt 0:00:27]} 11. a3 {[%emt 0:00:56]} Qc7 {[%emt 0:04:36]} 12. Ne2 {[%emt 0:00:27]} Rfe8 {[%emt 0:00:50]} 13. g4 {[%emt 0:02:52]} exd4 {[%emt 0:00:43]} 14. Nxd4 {[%emt 0:02:00]} g6 {[%emt 0:06:06]} 15. g5 {[%emt 0:13:34]} Nh5 {[%emt 0:00:13]} 16. f5 {[%emt 0:00:51]} Ne5 {[%emt 0:01:02]} 17. Qf2 {[%emt 0:00:22]} Nxd3 {[%emt 0:03:12]} 18. cxd3 {[%emt 0:00:27]} Bf8 {[%emt 0:00:08]} 19. Rae1 {[%emt 0:12:41]} d5 {[%emt 0:03:51]} 20. exd5 {[%emt 0:05:51]} cxd5 {[%emt 0:01:24]} 21. Kg2 {[%emt 0:04:20]} Qd7 {[%emt 0:04:58]} 22. Qf3 {[%emt 0:06:04]} Rac8 {[%emt 0:09:34]} 23. Bf2 {[%emt 0:01:51]} Bd6 {[%emt 0:03:06]} 24. Rxe8+ {[%emt 0:02:41]} Rxe8 {[%emt 0:00:56]} 25. Re1 {[%emt 0:00:46]} Rxe1 {[%emt 0:07:44]} 26. Bxe1 {[%emt 0:00:09]} Qe7 {[%emt 0:00:40]} 27. Bd2 {[%emt 0:06:29]} Qe5 {[%emt 0:00:31]} 28. Bc3 {[%emt 0:07:23]} Qh2+ {[%emt 0:12:49]} 29. Kf1 {[%emt 0:00:24]} Bf4 {[%emt 0:00:11]} 30. Ne2 {[%emt 0:06:04]} Bxg5 {[%emt 0:00:08]} 31. fxg6 {[%emt 0:00:08]} hxg6 {[%emt 0:00:07]} 32. Qxd5 {[%emt 0:02:00]} Qxe2+ 0-1

[Event "1st Gujarat GM Open 2018"]
[Site "Ahmedabad"]
[Date "2018.10.07"]
[Round "4"]
[White "Raahul V S"]
[Black "Predke, Alexandr"]
[Result "0-1"]
[ECO "A28"]
[WhiteElo "2294"]
[BlackElo "2615"]
[Annotator "RC"]
[PlyCount "72"]
[EventDate "2018.10.05"]
[EventType "swiss"]
[EventCountry "IND"]
[SourceTitle "playchess.com"]
[Source "ChessBase"]
[SourceQuality "1"]
[TimeControl "5400+30"]

1. c4 {[%emt 0:00:00]} e5 {[%emt 0:00:47]} 2. Nc3 {[%emt 0:00:00]} Nf6 {[%emt 0:00:18]} 3. Nf3 {[%emt 0:00:00]} Nc6 {[%emt 0:00:05]} 4. e3 {[%emt 0:00:00]} Bb4 {[%emt 0:00:30]} 5. Qc2 {[%emt 0:00:02]} Bxc3 {[%emt 0:00:32]} 6. Qxc3 {[%emt 0:00:05]} Qe7 {[%emt 0:00:14]} 7. d4 {[%emt 0:00:10]} Ne4 {[%emt 0:01:07]} 8. Qd3 {[%emt 0:00:16]} exd4 {[%emt 0:00:17]} 9. Nxd4 {[%emt 0:00:02]} Nc5 {[%emt 0:00:13]} 10. Qd2 {[%emt 0:04:13]} Nxd4 {[%emt 0:00:04]} 11. Qxd4 {[%emt 0:00:03]} O-O {[%emt 0:00:44]} 12. Be2 {[%emt 0:01:32]} b6 {[%emt 0:00:59]} 13. Bf3 {[%emt 0:01:00]} Bb7 {[%emt 0:01:44]} 14. Bxb7 {[%emt 0:03:02]} Nxb7 {[%emt 0:00:03]} 15. O-O {[%emt 0:00:57]} Nc5 {[%emt 0:00:23]} 16. b3 {[%emt 0:00:57]} d6 {[%emt 0:00:48]} 17. Bb2 {[%emt 0:00:43]} f5 {[%emt 0:00:06]} 18. Rfe1 {[%emt 0:02:27]} a5 {[%emt 0:00:10]} 19. f3 {[%emt 0:01:16]} Rae8 {[%emt 0:00:44]} 20. Rad1 {[%emt 0:02:25]} Rf7 {[%emt 0:01:53]} 21. Ba3 {[%emt 0:01:18]} Ne6 {[%emt 0:00:47]} 22. Qd2 {[%emt 0:00:14]} Qg5 {[%emt 0:03:32]} 23. e4 {[%emt 0:04:49]} Nf4 {[%emt 0:07:00]} 24. e5 {[%emt 0:00:32]} Rfe7 {[%emt 0:41:18]} 25. g3 {[%emt 0:00:10]} Rxe5 {[%emt 0:00:51]} 26. Rxe5 {[%emt 0:00:06]} dxe5 {[%emt 0:00:04]} 27. Qd7 {[%emt 0:00:15]} Qg6 {[%emt 0:07:04]} 28. Qxc7 {[%emt 0:01:27]} Ne2+ {[%emt 0:00:06]} 29. Kg2 {[%emt 0:02:13]} e4 {[%emt 0:20:41]} 30. Bb2 {[%emt 0:03:52]} exf3+ {[%emt 0:02:54]} 31. Kf2 {[%emt 0:01:26]} f4 {[%emt 0:01:26]} 32. Rd8 {[%emt 0:12:03]} Nd4 {[%emt 0:01:48]} 33. Rxd4 {[%emt 0:04:50]} Qc2+ {[%emt 0:01:57]} 34. Kxf3 {[%emt 0:00:02]} Qe2+ {[%emt 0:00:04]} 35. Kxf4 {[%emt 0:00:19]} Rf8+ {[%emt 0:00:45]} 36. Kg5 {[%emt 0:00:19]} h6+ {[%emt 0:00:08]} 0-1